bitfinex-derivatives/quotes_SOLF0:USTF0_20251219
["timestamp","ask_amount","ask_price","bid_price","bid_amount"]
[1766129683511,7.2541,124.15,124.07,10.6584]
[1766129683816,7.2541,124.15,124.08,3.4]
[1766129684020,23.99799742,124.16,124.08,3.4]
[1766129684213,56.73820938,124.17,124.08,3.4]
[1766129684411,0.06036194,124.14,124.11,0.05108295]
[1766129693129,47.58,124.13,124.06,3.4]
[1766129693426,53.43094398,124.13,124.06,3.4]
[1766129694126,0.05407357,124.11,124.08,0.05806051]
[1766129694520,0.05407357,124.11,124.08,3.45806051]
[1766129696628,0.00407357,124.11,124.08,3.45806051]
[1766129702534,1.34619414,124.18,124.09,3.4]
[1766129702832,1.34619414,124.18,124.1,3.4]
[1766129703230,1.34619414,124.18,124.12,3.4]
[1766129703431,0.06007812,124.16,124.14,0.05744418]
[1766129704741,7.812e-05,124.16,124.14,3.29744418]
[1766129705039,14.77709275,124.23,124.14,3.29744418]
[1766129705233,14.77709275,124.23,124.16,3.41]
[1766129705234,74.87727278,124.23,124.16,3.41]
[1766129705433,51.3204015,124.23,124.16,3.41]
[1766129705827,144.46309275,124.27,124.16,3.41]
[1766129706033,3.7404015,124.23,124.16,3.41]
[1766129706241,0.05805017,124.22,124.2,0.05615167]
[1766129706440,0.05805017,124.22,124.16,3.41]
[1766129707134,3.7404015,124.21,124.13,3.41]
[1766129707333,0.058376,124.18,124.16,0.05399256]
[1766129709336,112.7542,124.25,124.16,3.46399256]
[1766129709636,112.7542,124.25,124.16,3.41]
[1766129709836,3.7404015,124.22,124.16,3.41]
[1766129710023,24.4700594,124.23,124.16,3.41]
[1766129710229,112.7542,124.25,124.16,3.41]
[1766129710439,3.79130773,124.22,124.19,0.06088807]
[1766129711128,11.04140773,124.22,124.16,3.41]
[1766129711531,47.56,124.21,124.16,3.41]
[1766129712236,47.56,124.21,124.17,0.06159739]
[1766129713034,51.35130773,124.22,124.17,0.06159739]
[1766129713339,47.61090623,124.22,124.17,0.06159739]
[1766129715030,47.61090623,124.22,124.17,3.47159739]
[1766129715634,0.05090623,124.22,124.17,3.47159739]
[1766129719847,0.05090623,124.22,124.17,0.06159739]
[1766129720138,3.7404015,124.18,124.12,3.41]
[1766129720342,47.56,124.19,124.12,3.41]
[1766129720644,51.3004015,124.19,124.12,3.41]
[1766129721139,0.05813734,124.17,124.14,0.05996119]
[1766129723331,47.56,124.19,124.14,3.46996119]
[1766129724346,0.05599289,124.18,124.14,3.46996119]
[1766129726252,24.47250542,124.24,124.14,3.46996119]
[1766129726253,3.7404015,124.2,124.14,3.46996119]
[1766129726449,51.3004015,124.21,124.14,3.41]
[1766129726948,47.56,124.21,124.14,3.41]
[1766129727341,0.00490427,124.19,124.16,3.46768473]
[1766129729949,3.7404015,124.23,124.16,3.46768473]
[1766129730248,47.56,124.24,124.16,3.46768473]
[1766129730440,3.7404015,124.25,124.18,3.41]
[1766129730949,0.05725124,124.23,124.2,0.05187741]
[1766129731149,3.79765274,124.23,124.16,3.41]
[1766129731444,3.7404015,124.23,124.16,3.41]
[1766129732249,0.06082094,124.21,124.18,0.05073109]
[1766129739246,47.56,124.24,124.18,3.25073109]
[1766129740243,0.06104091,124.22,124.18,3.25073109]
[1766129740448,3.7404015,124.27,124.19,3.25432764]
[1766129740752,3.7404015,124.27,124.19,3.2]
[1766129741050,3.7404015,124.3,124.23,3.2]
[1766129741353,0.05939821,124.28,124.25,3.26042933]
[1766129741547,3.7404015,124.32,124.25,3.2]
[1766129741750,3.7404015,124.34,124.27,3.2]
[1766129742445,0.05293952,124.32,124.29,0.05150841]
[1766129742650,0.05694198,124.32,124.29,0.05809446]
[1766129743953,3.7404015,124.36,124.29,3.25809446]
[1766129744953,0.05759545,124.34,124.29,3.25809446]
[1766129747557,3.7404015,124.37,124.3,3.2]
[1766129748550,0.05630348,124.35,124.32,0.05188381]
[1766129750852,3.7404015,124.37,124.32,3.25188381]
[1766129751647,3.7404015,124.37,124.32,0.05188381]
[1766129751849,0.05938608,124.36,124.32,0.05188381]
[1766129752452,0.05938608,124.36,124.28,3.7404015]
[1766129752453,3.7404015,124.35,124.28,3.2]
[1766129752650,7.2412,124.37,124.28,3.2]
[1766129752957,3.7404015,124.34,124.28,3.2]
[1766129753659,0.05380367,124.32,124.3,0.05391466]
[1766129754056,3.7404015,124.35,124.3,0.05391466]
[1766129755062,0.0581896,124.34,124.3,0.05391466]
[1766129755254,3.7404015,124.33,124.26,3.2]
[1766129755653,7.2426,124.35,124.26,3.2]
[1766129755853,3.7404015,124.33,124.26,3.2]
[1766129756362,0.05817378,124.31,124.28,0.05580611]
[1766129757964,3.79857528,124.31,124.24,3.2]
[1766129759163,3.79857528,124.31,124.26,0.05279621]
[1766129760266,0.05817378,124.31,124.26,0.05279621]
[1766129760465,3.79857528,124.31,124.26,0.05279621]
[1766129763363,3.79857528,124.31,124.26,0.00279621]
[1766129763563,3.7404015,124.27,124.22,3.46]
[1766129764467,0.06074567,124.26,124.23,0.05183065]
[1766129765861,166.04495061,124.32,124.23,3.42183065]
[1766129765862,5.83675061,124.32,124.23,3.42183065]
[1766129766058,5.83675061,124.32,124.23,3.37]
[1766129766869,0.05933952,124.29,124.26,0.05917625]
[1766129769774,60.59985061,124.34,124.26,3.42917625]
[1766129770072,5.83675061,124.32,124.24,3.37]
[1766129770664,13.08105061,124.32,124.24,3.37]
[1766129770860,0.05855556,124.29,124.27,0.0574826]
[1766129773073,0.05855556,124.29,124.24,7.2484]
[1766129773269,0.05855556,124.29,124.24,10.6184]
[1766129773880,0.05855556,124.29,124.22,3.37]
[1766129774069,0.05855556,124.29,124.24,0.05564819]
[1766129775174,47.57855556,124.29,124.24,0.05564819]
[1766129776078,0.05855556,124.29,124.24,0.05564819]
[1766129782987,47.57855556,124.29,124.24,0.05564819]
[1766129785488,0.05855556,124.29,124.24,3.42564819]
[1766129785680,47.57855556,124.29,124.24,3.42564819]
[1766129785880,47.52,124.35,124.25,3.37]
[1766129786283,119.7964413,124.39,124.27,3.37]
[1766129786482,47.52,124.36,124.27,3.37]
[1766129786891,0.05842801,124.33,124.3,0.06190896]
[1766129790095,7.2406,124.38,124.3,3.43190896]
[1766129790294,7.2406,124.38,124.3,3.37]
[1766129790486,54.7606,124.38,124.3,3.37]
[1766129791099,0.05369939,124.35,124.33,0.05255541]
[1766129794688,0.00369939,124.35,124.33,0.05255541]
[1766129797709,48.83229069,124.39,124.33,3.53255541]
[1766129798606,0.0507171,124.37,124.33,3.53255541]
[1766129802008,0.0007171,124.37,124.33,10.77565541]
[1766129802213,7.2374,124.44,124.35,3.48]
[1766129802414,54.7374,124.44,124.35,3.48]
[1766129803115,0.03623858,124.41,124.38,0.06019288]
[1766129803416,47.5,124.46,124.38,3.54019288]
[1766129803616,47.5,124.46,124.38,3.48]
[1766129803808,47.5,124.47,124.38,3.48]
[1766129804516,47.5,124.47,124.41,0.05402097]
[1766129804715,7.2373,124.44,124.38,3.48]
[1766129805824,0.05402097,124.42,124.4,0.0537365]
[1766129806126,0.00402097,124.42,124.4,0.0537365]
[1766129809914,161.68032097,124.42,124.31,5.83675061]
[1766129810114,160.0763,124.42,124.31,5.83675061]
[1766129810420,7.2396,124.4,124.31,5.83675061]
[1766129810813,0.05775747,124.37,124.34,0.05663539]
[1766129811019,7.2396,124.4,124.34,0.05663539]
[1766129813228,47.48,124.41,124.34,3.53663539]
[1766129813413,47.48,124.41,124.36,0.06005171]
[1766129814421,54.7191,124.41,124.36,0.06005171]
[1766129815010,7.2391,124.41,124.36,0.06005171]
[1766129816021,54.7191,124.41,124.36,0.06005171]
[1766129820125,47.48,124.41,124.36,3.37005171]
[1766129822132,118.40735061,124.45,124.36,3.37005171]
[1766129822133,47.48,124.44,124.36,3.37005171]
[1766129822327,47.48,124.44,124.39,0.05492165]
[1766129823432,54.7173,124.44,124.39,0.05492165]
[1766129823821,7.2379,124.43,124.39,0.05492165]
[1766129825534,7.2885,124.42,124.34,3.2]
[1766129825836,7.2385,124.42,124.34,3.2]
[1766129826038,13.07525061,124.42,124.34,3.2]
[1766129826631,0.05492165,124.39,124.37,0.05150317]
[1766129827036,0.05492165,124.39,124.34,3.2]
[1766129828123,0.05492165,124.39,124.35,3.2568496]
[1766129828328,0.00492165,124.39,124.35,3.2568496]
[1766129829130,3.7278164,124.44,124.36,3.2]
[1766129829930,3.7278164,124.42,124.36,3.2]
[1766129830233,0.05150317,124.4,124.34,3.2]
[1766129830739,0.05150317,124.4,124.34,10.4426]
[1766129831036,51.2078164,124.44,124.36,3.2]
[1766129831537,1.36078696,124.49,124.38,6.9278164]
[1766129831728,3.7278164,124.48,124.41,3.2]
[1766129831928,0.0541684,124.46,124.43,0.05240285]
[1766129832130,3.7819848,124.46,124.39,3.2]
[1766129832340,3.7278164,124.44,124.39,3.2]
[1766129832635,3.7278164,124.44,124.37,3.2]
[1766129833241,0.05911777,124.42,124.39,0.05946337]
[1766129833934,0.05911777,124.42,124.36,3.2]
[1766129834927,0.05911777,124.42,124.38,0.05680024]
[1766129835525,3.78693417,124.42,124.38,0.05680024]
[1766129836036,3.78693417,124.42,124.34,3.2]
[1766129836240,3.7278164,124.42,124.34,3.2]
[1766129836438,3.7278164,124.41,124.34,3.2]
[1766129836741,3.7278164,124.42,124.34,3.2]
[1766129837041,0.05803885,124.39,124.37,0.05358392]
[1766129839031,3.7278164,124.42,124.37,0.05358392]
[1766129839736,3.7278164,124.44,124.37,3.25358392]
[1766129839936,51.2078164,124.46,124.37,3.25358392]
[1766129840131,0.05262094,124.43,124.4,0.05824189]
[1766129840742,0.05262094,124.43,124.4,3.25824189]
[1766129842631,0.05262094,124.43,124.4,0.05824189]
[1766129842840,3.7278164,124.42,124.38,3.2]
[1766129843638,3.7278164,124.42,124.36,3.2]
[1766129843832,3.7278164,124.42,124.38,0.05903655]
[1766129844039,0.05257655,124.4,124.38,0.05903655]
[1766129844254,54.6961,124.46,124.38,3.25903655]
[1766129844548,3.7278164,124.44,124.38,3.2]
[1766129845238,0.0598878,124.42,124.4,0.05835265]
[1766129849042,0.0598878,124.42,124.38,3.2]
[1766129849967,0.0598878,124.42,124.39,0.05848125]
[1766129850150,0.05618472,124.42,124.39,0.05789019]
[1766129852545,54.6961,124.46,124.39,3.25789019]
[1766129853049,9.97798973,124.47,124.39,3.25789019]
[1766129853254,9.97798973,124.47,124.39,3.2]
[1766129853447,0.05772075,124.44,124.42,0.0546429]
[1766129853642,48.82078696,124.49,124.42,0.0546429]
[1766129854548,0.05634402,124.47,124.42,0.0546429]
[1766129856044,0.05634402,124.47,124.42,3.3246429]
[1766129856741,0.05634402,124.47,124.42,10.5626429]
[1766129860958,0.05634402,124.47,124.42,3.3246429]
[1766129866257,122.47598973,124.53,124.42,3.3246429]
[1766129866450,122.47598973,124.53,124.42,3.27]
[1766129867354,0.06087742,124.49,124.46,0.05662155]
[1766129876155,7.2305,124.56,124.46,3.32662155]
[1766129876464,3.72188746,124.55,124.47,3.27]
[1766129877049,7.2297,124.57,124.48,7.2343]
[1766129877255,3.72188746,124.55,124.51,0.0598027]
[1766129877658,47.44,124.57,124.51,3.3298027]
[1766129877857,3.72188746,124.56,124.51,3.3298027]
[1766129878361,51.16188746,124.57,124.51,3.3298027]
[1766129878664,3.72188746,124.57,124.51,3.3298027]
[1766129879952,113.82189116,124.58,124.51,0.0598027]
[1766129880153,3.72188746,124.55,124.51,0.0598027]
[1766129880358,3.72188746,124.53,124.47,3.27]
[1766129881161,3.72188746,124.55,124.48,3.27]
[1766129881364,3.72188746,124.51,124.45,3.27]
[1766129881865,3.72188746,124.49,124.43,3.27]
[1766129882571,0.06031417,124.47,124.45,0.0606428]
[1766129885872,3.72188746,124.46,124.39,50.93]
[1766129886468,3.72188746,124.46,124.4,3.47]
[1766129886667,0.05240999,124.44,124.42,0.05421552]
[1766129889361,0.05240999,124.44,124.38,3.47]
[1766129890459,0.05240999,124.44,124.4,0.05963802]
[1766129891571,5.87142015,124.44,124.37,0.77479]
[1766129892473,5.87142015,124.44,124.39,0.05369625]
[1766129893273,5.87142015,124.44,124.39,0.00369625]
[1766129893468,125.68602015,124.44,124.37,0.77479]
[1766129894269,13.10892015,124.44,124.37,0.77479]
[1766129894472,13.10892015,124.44,124.39,0.05358962]
[1766129894767,13.10892015,124.44,124.39,0.00358962]
[1766129894981,13.10892015,124.44,124.37,0.77479]
[1766129895561,5.81901016,124.42,124.37,0.77479]
[1766129895961,0.05293682,124.41,124.38,0.05113067]
[1766129896579,0.05293682,124.41,124.34,3.47]
[1766129897578,0.05293682,124.41,124.36,0.0561263]
[1766129901074,5.87194698,124.41,124.36,0.0561263]
[1766129901471,47.46,124.4,124.32,3.47]
[1766129901675,5.81901016,124.39,124.32,3.47]
[1766129901978,13.05921016,124.39,124.32,3.47]
[1766129902567,0.05261214,124.37,124.34,0.05386103]
[1766129905177,0.05261214,124.37,124.3,3.47]
[1766129906082,0.05261214,124.37,124.32,0.05145152]
[1766129912578,0.05261214,124.37,124.32,3.52145152]
[1766129912872,47.53261214,124.37,124.32,3.52145152]
[1766129913187,0.05261214,124.37,124.32,3.52145152]
[1766129913889,0.00261214,124.37,124.32,3.52145152]
[1766129918581,0.00261214,124.37,124.33,3.21]
[1766129921382,13.05631016,124.44,124.33,3.21]
[1766129921579,47.48,124.43,124.33,3.21]
[1766129921785,13.05631016,124.44,124.36,3.21]
[1766129921993,47.48,124.44,124.36,3.21]
[1766129922386,0.05326107,124.41,124.39,0.06067415]
[1766129924593,0.00326107,124.41,124.39,3.27067415]
[1766129926388,0.00326107,124.41,124.39,0.06067415]
[1766129928697,0.00326107,124.41,124.35,3.21]
[1766129928882,7.238,124.43,124.35,3.21]
[1766129929784,0.05274764,124.4,124.38,0.05286717]
[1766129935903,0.00274764,124.4,124.38,0.05286717]
[1766129938306,0.00274764,124.4,124.38,3.26286717]
[1766129942009,0.00274764,124.4,124.38,0.05286717]
[1766129943912,47.48,124.45,124.38,3.38286717]
[1766129944807,0.05693854,124.43,124.38,3.38286717]
[1766129947816,112.6408,124.37,124.28,10.60198269]
[1766129948012,190.10851016,124.36,124.29,3.32]
[1766129948310,5.81901016,124.32,124.23,3.32]
[1766129948913,0.05405088,124.29,124.26,3.37184911]
[1766129949099,112.6437,124.37,124.26,3.37184911]
[1766129949304,53.29901016,124.36,124.26,3.32]
[1766129949506,3.73076712,124.35,124.27,3.32]
[1766129950216,0.05566207,124.32,124.3,0.0566739]
[1766129951311,3.73076712,124.35,124.3,3.3766739]
[1766129951717,51.21076712,124.36,124.3,3.3766739]
[1766129952209,3.73076712,124.37,124.3,3.3766739]
[1766129952414,3.73076712,124.37,124.32,0.05168011]
[1766129953007,3.73076712,124.37,124.32,3.37168011]
[1766129953316,0.05554477,124.36,124.32,3.37168011]
[1766129962528,0.05554477,124.36,124.32,0.05168011]
[1766129962529,3.78631189,124.36,124.32,0.05168011]
[1766129962815,3.73076712,124.34,124.29,3.32]
[1766129964017,0.06034213,124.33,124.3,0.05684482]
[1766129967227,3.73076712,124.32,124.29,3.32]
[1766129967429,3.73076712,124.32,124.27,3.32]
[1766129967820,3.73076712,124.3,124.25,50.82]
[1766129968022,3.73076712,124.3,124.25,3.32]
[1766129968227,0.05419209,124.29,124.26,0.05910836]
[1766129969730,51.23076712,124.32,124.26,3.37910836]
[1766129969934,3.73076712,124.32,124.26,3.32]
[1766129970932,3.73076712,124.32,124.28,0.05866653]
[1766129970933,0.06036594,124.3,124.28,0.05866653]
[1766129972129,0.00036594,124.3,124.28,0.05866653]
[1766129982148,7.2421,124.36,124.28,3.55866653]
[1766129982456,3.73076712,124.35,124.28,3.5]
[1766129983256,0.05110849,124.33,124.3,0.05807651]
[1766129989057,0.05110849,124.33,124.3,3.55807651]
[1766129989754,0.00110849,124.33,124.3,3.55807651]
[1766129994262,3.73076712,124.37,124.3,3.55807651]
[1766129995260,0.05345785,124.35,124.3,3.55807651]
[1766129996767,3.78422497,124.35,124.3,3.55807651]
[1766130004079,3.73076712,124.31,124.26,3.22]
[1766130005170,0.05373245,124.3,124.27,0.05552498]
[1766130005367,3.73076712,124.33,124.27,3.45552498]
[1766130005571,51.23076712,124.33,124.27,3.45552498]
[1766130005874,3.73076712,124.34,124.27,3.45552498]
[1766130006183,3.73076712,124.34,124.27,3.4]
[1766130006478,0.0552076,124.32,124.29,0.06142838]
[1766130010770,7.2414,124.37,124.29,3.46142838]
[1766130010971,10.97216712,124.37,124.29,3.4]
[1766130011383,7.2414,124.37,124.29,3.4]
[1766130011682,53.3277563,124.38,124.3,3.4]
[1766130011886,0.05539313,124.35,124.33,0.05430074]
[1766130038399,0.05539313,124.35,124.31,3.47]
[1766130039405,0.05539313,124.35,124.32,0.05227634]
[1766130060833,5.8277563,124.33,124.25,3.47]
[1766130061130,5.8277563,124.36,124.28,3.47]
[1766130061320,47.5,124.37,124.28,3.47]
[1766130061721,0.05352934,124.34,124.31,3.52605602]
[1766130062231,0.00352934,124.34,124.31,3.52605602]
[1766130063625,47.5,124.39,124.31,3.52605602]
[1766130063930,47.5,124.39,124.31,3.47]
[1766130064633,0.05970342,124.36,124.34,0.05210856]
[1766130072342,0.05970342,124.36,124.29,3.25]
[1766130072641,3.789111,124.36,124.29,3.25]
[1766130073343,3.789111,124.36,124.31,0.05659299]
[1766130073544,0.05588566,124.35,124.31,0.05659299]
[1766130076045,0.05588566,124.35,124.31,3.30659299]
[1766130077050,3.72940758,124.38,124.31,3.30659299]
[1766130078039,0.05722368,124.36,124.31,3.30659299]
[1766130079356,3.78663126,124.36,124.31,3.30659299]
[1766130081143,0.05722368,124.36,124.31,3.30659299]
[1766130081339,3.78663126,124.36,124.31,3.30659299]
[1766130086162,11.02843126,124.36,124.31,0.05659299]
[1766130086351,3.72940758,124.34,124.31,0.05659299]
[1766130087254,7.29902368,124.36,124.31,3.30659299]
[1766130087255,3.78663126,124.36,124.31,3.30659299]
[1766130087455,0.05722368,124.36,124.31,3.30659299]
[1766130088164,3.78663126,124.36,124.31,3.30659299]
[1766130090270,3.78663126,124.36,124.31,0.05659299]
[1766130093863,0.05722368,124.36,124.31,0.05659299]
[1766130094072,3.72940758,124.35,124.31,0.05659299]
[1766130094680,3.78663126,124.36,124.31,0.05659299]
[1766130096974,3.72940758,124.32,124.26,3.33]
[1766130097977,0.05731298,124.3,124.28,0.05660425]
[1766130101177,7.2419,124.36,124.28,3.38660425]
[1766130101373,3.72940758,124.37,124.3,3.33]
[1766130101766,160.1249,124.39,124.3,3.33]
[1766130101971,3.72940758,124.37,124.3,3.33]
[1766130102174,0.05632288,124.35,124.32,0.06136581]
[1766130106478,0.05632288,124.35,124.32,0.00136581]
[1766130106785,3.78573046,124.35,124.28,3.33]
[1766130106981,3.72940758,124.35,124.28,3.33]
[1766130107781,0.05487784,124.33,124.3,0.05565415]
[1766130112083,0.05487784,124.33,124.3,3.38565415]
[1766130112278,47.5,124.36,124.3,3.38565415]
[1766130113181,0.05197591,124.34,124.3,3.38565415]
[1766130113583,7.2403,124.39,124.3,3.38565415]
[1766130113782,58.46970758,124.39,124.3,3.33]
[1766130114790,0.05680997,124.36,124.33,0.05507957]
[1766130119691,0.05680997,124.36,124.33,3.38507957]
[1766130123283,0.05680997,124.36,124.33,0.05507957]
[1766130128296,3.78621755,124.36,124.33,0.05507957]
[1766130130000,0.05680997,124.36,124.33,0.05507957]
[1766130130197,3.78621755,124.36,124.33,0.05507957]
[1766130133407,0.05680997,124.36,124.33,0.05507957]
[1766130147108,7.2402,124.39,124.33,3.35507957]
[1766130147310,13.06801102,124.39,124.33,0.05507957]
[1766130148206,0.05552365,124.37,124.33,0.05507957]
[1766130149607,0.05552365,124.37,124.33,3.35507957]
[1766130149820,7.52014255,124.43,124.33,3.35507957]
[1766130150123,7.20539014,124.44,124.33,3.3]
[1766130150405,1.37757912,124.44,124.36,3.3]
[1766130150611,29.43037055,124.46,124.36,3.3]
[1766130150807,0.00380552,124.41,124.4,3.3]
[1766130151109,5.82781102,124.48,124.4,3.3]
[1766130151808,29.61460206,124.48,124.4,3.3]
[1766130152001,0.05203274,124.45,124.43,0.05240542]
[1766130152201,0.05203274,124.45,124.4,3.3]
[1766130153214,0.05203274,124.45,124.41,0.06116538]
[1766130153702,0.05203274,124.45,124.38,3.3]
[1766130153903,0.05203274,124.45,124.29,122.56170886]
[1766130153904,5.82781102,124.44,124.34,3.3]
[1766130154100,5.82781102,124.42,124.34,3.3]
[1766130154308,5.82781102,124.38,124.32,3.3]
[1766130154711,5.82781102,124.38,124.34,0.0535621]
[1766130154900,0.05687044,124.36,124.34,0.0535621]
[1766130155818,0.05687044,124.36,124.26,118.56121102]
[1766130156113,5.82781102,124.38,124.27,3.28]
[1766130156914,5.82781102,124.38,124.31,0.05324493]
[1766130156915,0.05840309,124.34,124.31,0.05324493]
[1766130158914,112.6082,124.41,124.31,3.33324493]
[1766130159111,5.82781102,124.4,124.31,3.28]
[1766130159312,5.82781102,124.38,124.31,3.28]
[1766130159917,5.82781102,124.38,124.29,7.2457]
[1766130159918,0.05722849,124.36,124.33,0.05409015]
[1766130160217,5.82781102,124.41,124.33,3.34001622]
[1766130160520,5.82781102,124.41,124.33,3.28]
[1766130161211,0.05447403,124.38,124.36,0.05679556]
[1766130164319,0.05447403,124.38,124.33,3.28]
[1766130164711,0.05447403,124.38,124.31,3.28]
[1766130165511,0.05447403,124.38,124.33,0.05774475]
[1766130168927,0.05447403,124.38,124.33,3.33774475]
[1766130181251,0.05447403,124.38,124.33,0.05774475]
[1766130181453,118.47061102,124.37,124.26,3.28]
[1766130181646,5.82781102,124.35,124.26,3.28]
[1766130182646,0.06186996,124.32,124.29,0.05840759]
[1766130186952,7.2412,124.37,124.29,3.32840759]
[1766130187157,7.2412,124.37,124.29,3.27]
[1766130188150,0.05125095,124.34,124.32,0.05168319]
[1766130190752,0.05125095,124.34,124.29,3.27]
[1766130191657,0.05125095,124.34,124.3,0.05904904]
[1766130192055,5.82781102,124.32,124.23,3.27]
[1766130192554,5.82781102,124.33,124.23,3.27]
[1766130192946,0.05647484,124.29,124.27,0.06129891]
[1766130193351,118.49081102,124.35,124.27,3.33129891]
[1766130193546,5.82781102,124.35,124.27,3.27]
[1766130194350,0.0607901,124.32,124.3,0.05448915]
[1766130195452,0.0607901,124.32,124.3,0.00448915]
[1766130200460,3.73210485,124.37,124.3,3.27448915]
[1766130201364,3.73210485,124.39,124.32,3.27]
[1766130201560,0.05444046,124.37,124.34,0.05165078]
[1766130217965,10.97070485,124.42,124.34,3.44165078]
[1766130218263,10.97070485,124.42,124.35,3.39]
[1766130218470,3.73210485,124.43,124.35,3.39]
[1766130218970,0.05753657,124.4,124.38,0.05601404]
[1766130219955,0.05753657,124.4,124.34,3.39]
[1766130221072,3.73210485,124.39,124.36,0.05199542]
[1766130221272,3.79108218,124.39,124.32,3.39]
[1766130221975,11.03128218,124.39,124.32,3.39]
[1766130222173,3.73210485,124.37,124.32,3.39]
[1766130222472,0.05385134,124.36,124.34,0.05122077]
[1766130225075,0.00385134,124.36,124.34,3.44122077]
[1766130226976,10.97090485,124.42,124.34,3.44122077]
[1766130227174,3.73210485,124.42,124.34,3.39]
[1766130227370,3.73210485,124.42,124.35,3.39]
[1766130227565,10.96950485,124.44,124.35,3.39]
[1766130227977,0.06173704,124.41,124.38,0.05954432]
[1766130228866,0.06173704,124.41,124.33,3.39]
[1766130229072,136.7585,124.43,124.33,3.39]
[1766130229073,3.73210485,124.4,124.33,3.39]
[1766130229376,7.2379,124.43,124.33,3.39]
[1766130229573,3.73210485,124.42,124.34,3.39]
[1766130229881,0.05097424,124.39,124.37,0.05933164]
[1766130235774,3.73210485,124.44,124.37,3.44933164]
[1766130235973,3.73210485,124.45,124.37,3.44933164]
[1766130236171,3.73210485,124.45,124.37,3.39]
[1766130236575,10.96880485,124.45,124.37,3.39]
[1766130236780,0.06129896,124.42,124.4,0.05136646]
[1766130242387,3.79340381,124.42,124.37,3.39]
[1766130243386,3.79340381,124.42,124.38,0.05707678]
[1766130245276,0.06129896,124.42,124.38,3.34707678]
[1766130246088,3.73210485,124.45,124.38,3.34707678]
[1766130246287,23.78679104,124.48,124.41,3.29]
[1766130246493,3.73210485,124.49,124.41,3.29]
[1766130246892,10.96670485,124.49,124.41,3.29]
[1766130247088,0.05540728,124.46,124.44,0.05712364]
[1766130248586,3.73210485,124.5,124.44,3.34712364]
[1766130249587,0.05089147,124.48,124.44,3.34712364]
[1766130254706,3.78299632,124.48,124.44,0.05712364]
[1766130255304,3.78299632,124.48,124.44,3.34712364]
[1766130255804,0.05089147,124.48,124.44,3.34712364]
[1766130256001,0.00089147,124.48,124.44,7.07922849]
[1766130256209,136.6551,124.55,124.44,7.07922849]
[1766130256210,3.73210485,124.54,124.45,3.29]
[1766130257300,0.05647709,124.51,124.48,0.05825136]
[1766130257500,3.18,124.54,124.4,112.6101]
[1766130257699,3.18,124.54,124.43,5.81531332]
[1766130257908,8.99531332,124.53,124.41,5.81531332]
[1766130258109,32.83763083,124.53,124.41,5.81531332]
[1766130258406,7.2327,124.52,124.46,0.05586081]
[1766130259601,0.05765146,124.5,124.46,0.05586081]
[1766130260607,7.2344,124.49,124.44,3.29]
[1766130261611,7.2344,124.49,124.45,0.05954413]
[1766130263410,7.2349,124.48,124.45,0.05954413]
[1766130266515,10.4449,124.48,124.45,0.05954413]
[1766130266920,7.2349,124.48,124.45,0.05954413]
[1766130267613,3.21,124.44,124.32,5.81531332]
[1766130267917,115.7972,124.43,124.31,118.50391332]
[1766130268113,115.7804,124.45,124.33,7.2431]
[1766130268320,115.7876,124.44,124.33,7.2431]
[1766130268714,0.06187912,124.4,124.37,0.0584046]
[1766130269419,3.27187912,124.4,124.29,5.81531332]
[1766130269615,3.21,124.4,124.3,3.29]
[1766130270206,5.81531332,124.39,124.3,3.29]
[1766130270617,0.00340392,124.36,124.33,3.34598266]
[1766130274517,7.2393,124.41,124.33,3.34598266]
[1766130274720,7.2393,124.41,124.33,3.29]
[1766130275515,0.05904318,124.38,124.36,0.05241141]
[1766130277517,0.05904318,124.38,124.33,3.47]
[1766130278521,0.05904318,124.38,124.34,0.05715673]
[1766130284223,0.05904318,124.38,124.31,3.47]
[1766130284224,9.32531332,124.37,124.31,3.47]
[1766130284423,9.32531332,124.36,124.29,3.47]
[1766130284627,3.51,124.36,124.29,3.47]
[1766130285230,0.0580641,124.34,124.31,0.05676871]
[1766130286021,0.0580641,124.34,124.31,3.52676871]
[1766130300037,3.51,124.37,124.31,3.52676871]
[1766130300239,24.17,124.4,124.31,3.52676871]
[1766130300240,16.56501332,124.4,124.31,3.52676871]
[1766130300431,16.56501332,124.4,124.31,3.47]
[1766130300629,7.2385,124.42,124.32,3.47]
[1766130300836,3.51,124.43,124.33,3.47]
[1766130301138,3.51,124.43,124.32,118.49821332]